{"text_format":"1","workbook":"xlsx","n_sheets":1,"sheets":["price bid "],"not_rendered":{"charts":0,"images":0,"macros":1,"external_links":0,"defined_names":0,"comments":0,"pivot_tables":0},"unopened":[],"bounds":{"document_bytes":16777216,"sheet_cells":100000,"rows_first":2000,"rows_last":500,"rows_between":2000,"halvings":0,"cell_chars":16384,"cell_head_chars":4096},"cells_cut":0,"cells_raw":0,"read":"whole","date_system":"1900"}

{"sheet":"price bid ","index":0,"n_rows":24,"n_cols":9,"rows_kept":24,"cut":false,"hidden":false,"merged":[[20,1,20,8],[18,1,18,8],[19,1,19,8],[16,3,16,8],[0,0,0,8],[3,0,3,8],[1,0,1,8],[2,0,2,8],[4,0,4,2],[4,4,4,8]]}
["    BHARAT HEAVY ELECTRICAL LIMITED , JHANSI              "]
["FACTORY CIVIL DEPARTMENT"]
["PRICE BID"]
["Name of work -Repair and maintenance of roof & side  sheeting work of sheds  inside factory area."]
["Tender Enq No-FCX/TW/21/01",null,null,null,"Date- "]
["Sl. No.","Description of Work","% Allocation (Item-wise)","Unit ","Quantity ","Analysed rate of ","Amount\nRs","Rate per Unit (in Rs.)","Amount (in Rs.)"]
[1,"Fixing Polycarbonate sheet/ AC sheet/ Galvalume sheet of matching profile at the roof top of manufacturing blocks and other structures including removal of existing old GS Sheet/ Galvalume Sheet/ AC sheet including removal of ridges, hips valley, gutters etc. and stacking the material at appropriate places as per instruction of engineer-in- charge. To avoid breakage of sheets, adjacent sheets will also be required to be removed /loosened and then fixed accordingly. For measurement, overlap between new and existing sheet will not be deducted and would be considered during calculation of area. Whereas, the overlap arising between new sheets would be deducted during calculation of area. \nThe above item comprises of all the activities required to replace the existing sheet with  Polycarbonate sheet/ AC sheet/ Galvalume sheet \n (All items shall be issued by BHEL free of cost)\n\n"]
["a","Replacement upto 7 mtr height",{"$f":"G8/495920","v":0.14760445233102112},"Sqm ",300,244,{"$f":"E8*F8","v":73200},{"$f":"I8/E8","v":0},{"$f":"$I$16*C8","v":0}]
["b","Replacement above 7 mtr height",{"$f":"G9/495920","v":0.13542506855944508},"Sqm ",230,292,67160,{"$f":"I9/E9","v":0},{"$f":"$I$16*C9","v":0}]
[2,"Replacing broken /defective Louver   (All items shall be issued by BHEL free of cost)",1.5244394257138248E-2,"Mtr",30,252,7560,0,0]
[3,"Cleaning of Roof Gutters in factory area at height any height  (All items shall be issued by BHEL  free of cost)",0.24197451201806744,"Mtr",5000,24,120000,0,0]
[4,"Repairing of downtake MS pipe/ joint for 100 mm, 150 mm dia pipe at different places inside factory premises (All items shall be issued by BHEL free of cost)",9.6789804807226973E-2,"Mtr",160,300,48000,0,0]
[5,"Replacing of old gutter and/or fixing of new M.S. Gutter situated at different places inside factory premises.  (All items shall be issued by BHEL  free of cost)",4.0329085336344571E-2,"Mtr",50,400,20000,0,0]
[6,"Inspection and maintenance of roof sheeting including filling of holes by bitumastic compound/bitumen washer /M seal etc. to stop the leakage of  roof from an area of 150 Sqm   . (All items shall be issued by BHEL  free of cost)",0.25004032908533635,"Nos",620,200,124000,0,0]
[7,"Fixing of wind tie as required at the top of the roof of various blocks as per the direction of Engineer - In - Charge (All items shall be issued by BHEL  free of cost)",7.2592353605420226E-2,"Kg",1500,24,36000,0,0]
[null,"Total ",{"$f":"SUM(C8:C15)","v":1},null,null,null,{"$f":"SUM(G8:G15)","v":495920}]
[null,"IN WORDS",null,{"$f":"rup(I16)","v":0}]
[null,"Note -GST extra as applicable"]
[null,"1. Bidder has to quote in above unlocked cell only. Item rate shall be calculated automatically. Calculated item rates upto four decimal points may be adjusted w.r.t. gross total amount and it shall be the itemwise final rate for  execution of contract and all other purposes."]
[null,"2. Quoted gross total amount should be considered only if quoted in this excel sheet and print out of this should only be considered for evaluation.  If Price is quoted in any other format other than the Excel Sheet enclosed to the NIT , the offer of the bidder  will be rejected"]
[null,"3.During the execution , the quantity of various items may vary to any extent depending on requirement of work/site and as per discretion of BHEL."]
[]
[null,null,null,null,null,"Prepared by "]
[null,null,null,"(Signature and Seal of  Contractor  )"]